Workbook

Sheet Sheet1
A1: 中国石油大学（北京）马克思主义学院马克思主义理论专业2021级硕士研究生综合测评汇总表
A2: 学号 | B2: 德育成绩 | G2: 智育成绩 | L2: 文体成绩 | Q2: 总分 | R2: 排名
B3: 基础分 | C3: 奖励分 | D3: 惩罚分 | E3: 总 分 | F3: 基准后总分 | G3: 学习成绩分 | H3: 奖励分 | I3: 惩罚分 | J3: 总分 | K3: 基准后总分 | L3: 基本分 | M3: 奖励分 | N3: 惩罚分 | O3: 总分 | P3: 基准后总分
A4: 2021211508 | B4: 94.34782609 | C4: 8.5 | D4: 0 | E4: =B4+C4 -> 102.8478261 | F4: =E4/MAX($E$4:$E$19)*100 -> 78.78172251 | G4: 93.11157895 | H4: 1 | I4: 0 | J4: =G4+H4 -> 94.11157895 | K4: =J4/MAX($J$4:$J$19)*100 -> 94.02967415 | L4: 100 | M4: 12 | N4: 0 | O4: =L4+M4 -> 112 | P4: =O4/MAX($O4:$O$19)*100 -> 95.23809524 | Q4: =F4*0.2+K4*0.7+P4*0.1 -> 91.10092593 | R4: =RANK(Q4,$Q$4:$Q$19,0) -> 12
A5: 2021211509 | B5: 91.30434783 | C5: 19.5 | D5: 0 | E5: =B5+C5 -> 110.8043478 | F5: =E5/MAX($E$4:$E$19)*100 -> 84.87644042 | G5: 93.58710526 | H5: 6.5 | I5: 0 | J5: =G5+H5 -> 100.0871053 | K5: =J5/MAX($J$4:$J$19)*100 -> 100 | L5: 100 | M5: 12.93333333 | N5: 0 | O5: =L5+M5 -> 112.9333333 | P5: =O5/MAX($O4:$O$19)*100 -> 96.03174603 | Q5: =F5*0.2+K5*0.7+P5*0.1 -> 96.57846269 | R5: =RANK(Q5,$Q$4:$Q$19,0) -> 3
A6: 2021211510 | B6: 90 | C6: 0 | D6: 0 | E6: 90 | F6: 68.94025178 | G6: 90.95831579 | H6: 0 | I6: 0 | J6: 90.95831579 | K6: =J6/MAX($J$4:$J$19)*100 -> 90.87915526 | L6: 100 | M6: 0 | N6: 0 | O6: 100 | P6: =O6/MAX($O4:$O$19)*100 -> 85.03401361 | Q6: 85.9068604 | R6: 16
A7: 2021211512 | B7: 93.04347826 | C7: 24.1 | D7: 0 | E7: 117.1434783 | F7: 89.73223207 | G7: 92.5631579 | H7: 4.2 | I7: 0 | J7: 96.7631579 | K7: 96.67894545 | L7: 100 | M7: 16.33333333 | N7: 0 | O7: 116.3333333 | P7: =O7/MAX($O4:$O$19)*100 -> 98.92290249 | Q7: 95.51399847 | R7: 5
A8: 2021211513 | B8: 94.7826087 | C8: 9 | D8: 0 | E8: 103.7826087 | F8: 79.4977686 | G8: 92.55263158 | H8: 0 | I8: 0 | J8: 92.55263158 | K8: 92.47208353 | L8: 100 | M8: 9.6 | N8: 0 | O8: 109.6 | P8: =O8/MAX($O4:$O$19)*100 -> 93.19727891 | Q8: 89.94974008 | R8: 15
A9: 2021211514 | B9: 92.17391304 | C9: 23.9 | D9: 0 | E9: 116.073913 | F9: 88.91294212 | G9: 94.66776316 | H9: 3 | I9: 0 | J9: 97.66776316 | K9: 97.58276344 | L9: 100 | M9: 17.33333333 | N9: 0 | O9: 117.3333333 | P9: =O9/MAX($O4:$O$19)*100 -> 99.77324263 | Q9: 96.06784709 | R9: 4
A10: 2021211515 | B10: 92.17391304 | C10: 12.4 | D10: 0 | E10: 104.573913 | F10: 80.10390994 | G10: 90.54105263 | H10: 3 | I10: 0 | J10: 93.54105263 | K10: 93.45964436 | L10: 100 | M10: 16.93333333 | N10: 0 | O10: 116.9333333 | P10: =O10/MAX($O4:$O$19)*100 -> 99.43310658 | Q10: 91.3858437 | R10: 11
A11: 2021211516 | B11: 92.17391304 | C11: 19.1 | D11: 0 | E11: 111.273913 | F11: 85.23612869 | G11: 91.8131579 | H11: 3 | I11: 0 | J11: 94.8131579 | K11: 94.73064252 | L11: 100 | M11: 12.1 | N11: 0 | O11: 112.1 | P11: =O11/MAX($O4:$O$19)*100 -> 95.32312925 | Q11: 92.89098843 | R11: 9
A12: 2021211517 | B12: 91.73913043 | C12: 14.8 | D12: 0 | E12: 106.5391304 | F12: 81.60927196 | G12: 91.19473684 | H12: 2 | I12: 0 | J12: 93.19473684 | K12: 93.11362997 | L12: 100 | M12: 9.666666667 | N12: 0 | O12: 109.6666667 | P12: =O12/MAX($O4:$O$19)*100 -> 93.25396825 | Q12: =F12*0.2+K12*0.7+P12*0.1 -> 90.8267922 | R12: 13
A13: 2021211518 | B13: 92.60869565 | C13: 31.7 | D13: 0 | E13: 124.3086957 | F13: 95.22080863 | G13: 92.95789474 | H13: 1 | I13: 0 | J13: 93.95789474 | K13: 93.87612369 | L13: 100 | M13: 12.93333333 | N13: 0 | O13: 112.9333333 | P13: =O13/MAX($O4:$O$19)*100 -> 96.03174603 | Q13: 94.36062291 | R13: 7
A14: 2021211519 | B14: 94.34782609 | C14: 17.1 | D14: 0 | E14: 111.4478261 | F14: 85.36934657 | G14: 93.47894737 | H14: 2.5 | I14: 0 | J14: 95.97894737 | K14: 95.89541741 | L14: 100 | M14: 17.1 | N14: 0 | O14: 117.1 | P14: =O14/MAX($O4:$O$19)*100 -> 99.57482993 | Q14: 94.1581445 | R14: 8
A15: 2021211520 | B15: 92.17391304 | C15: 13.1 | D15: 0 | E15: 105.273913 | F15: 80.6401119 | G15: 91.81578947 | H15: 1 | I15: 0 | J15: 92.81578947 | K15: 92.7350124 | L15: 100 | M15: 12.93333333 | N15: 0 | O15: 112.9333333 | P15: =O15/MAX($O4:$O$19)*100 -> 96.03174603 | Q15: 90.64570566 | R15: 14
A16: 2021211521 | B16: 94.34782609 | C16: 24.2 | D16: 0 | E16: 118.5478261 | F16: 90.80796643 | G16: 93.82105263 | H16: 6 | I16: 0 | J16: 99.82105263 | K16: 99.73417891 | L16: 100 | M16: 17.26666667 | N16: 0 | O16: 117.2666667 | P16: =O16/MAX($O4:$O$19)*100 -> 99.71655329 | Q16: 97.94717385 | R16: 1
A17: 2021211522 | B17: 94.34782609 | C17: 36.2 | D17: 0 | E17: 130.5478261 | F17: 100 | G17: 93.54736842 | H17: 2 | I17: 0 | J17: 95.54736842 | K17: 95.46421407 | L17: 100 | M17: 17.26666667 | N17: 0 | O17: 117.2666667 | P17: =O17/MAX($O4:$O$19)*100 -> 99.71655329 | Q17: 96.79660518 | R17: 2
A18: 2021211523 | B18: 94.34782609 | C18: 20.6 | D18: 0 | E18: 114.9478261 | F18: 88.05035636 | G18: 93.25105263 | H18: 3 | I18: 0 | J18: 96.25105263 | K18: 96.16728586 | L18: 100 | M18: 17.6 | N18: 0 | O18: 117.6 | P18: =O18/MAX($O4:$O$19)*100 -> 100 | Q18: 94.92717138 | R18: 6
A19: 2021211524 | B19: 94.34782609 | C19: 18.1 | D19: 0 | E19: 112.4478261 | F19: 86.13534936 | G19: 92.30657895 | H19: 0 | I19: 0 | J19: 92.30657895 | K19: 92.22624503 | L19: 100 | M19: 17.26666667 | N19: 0 | O19: 117.2666667 | P19: =O19/MAX($O4:$O$19)*100 -> 99.71655329 | Q19: 91.75709673 | R19: 10
